bitfinex-derivatives/quotes_SOLF0:USTF0_20251107
["timestamp","ask_amount","ask_price","bid_price","bid_amount"]
[1762521242629,11.8457,152.07,151.98,3.06]
[1762521242830,3.16,152.06,151.98,3.06]
[1762521243034,3.16,152.1,152.0,5.14176875]
[1762521243633,0.04288666,152.07,152.03,0.04469866]
[1762521243836,3.20288666,152.07,152.03,0.00469866]
[1762521244033,3.16,152.05,151.95,6.08971283]
[1762521244223,3.16,152.05,151.95,9.14971283]
[1762521244425,15.0079,152.04,151.95,9.14971283]
[1762521244729,3.16,152.04,151.97,8.33176875]
[1762521244930,0.04315393,152.02,152.01,3.19]
[1762521245239,3.05,152.11,152.01,3.19]
[1762521245440,3.05,152.11,152.03,8.33176875]
[1762521246137,5.9224,152.08,152.04,3.19]
[1762521246328,0.04789654,152.08,152.04,3.23831083]
[1762521247234,3.05,152.15,152.07,3.19]
[1762521247430,3.05,152.15,152.08,71.45]
[1762521247627,5.9194,152.16,152.09,8.33176875]
[1762521247832,5.9194,152.16,152.1,3.19]
[1762521248033,5.9198,152.15,152.1,3.19]
[1762521248332,3.05,152.19,152.11,3.2378028]
[1762521248333,0.04985724,152.14,152.11,3.2378028]
[1762521248735,0.04985724,152.14,152.11,0.0478028]
[1762521249040,3.09985724,152.14,152.12,5.32801321]
[1762521249236,3.09985724,152.14,152.13,1.321e-05]
[1762521249733,9.01985724,152.14,152.13,1.321e-05]
[1762521250739,5.96985724,152.14,152.13,1.321e-05]
[1762521250943,10.33985724,152.14,152.13,1.321e-05]
[1762521252342,9.01985724,152.14,152.13,1.321e-05]
[1762521255457,5.96985724,152.14,152.13,1.321e-05]
[1762521255755,0.04985724,152.14,152.13,3.19001321]
[1762521255950,3.05,152.19,152.13,3.19001321]
[1762521256149,3.05,152.19,152.14,6.07518826]
[1762521256350,3.05,152.19,152.12,6.07518826]
[1762521256554,3.05,152.19,152.13,6.07518826]
[1762521256853,3.05,152.19,152.14,0.04552954]
[1762521257054,3.05,152.17,152.14,0.04552954]
[1762521257257,8.9696,152.15,152.14,0.04552954]
[1762521257451,5.9196,152.15,152.14,0.04552954]
[1762521257957,3.09318156,152.18,152.14,6.1207178]
[1762521258155,0.04318156,152.18,152.14,9.3107178]
[1762521258348,0.04318156,152.18,152.15,3.19]
[1762521258555,3.05,152.26,152.17,3.19]
[1762521258751,3.05,152.26,152.18,6.07518826]
[1762521258951,5.917,152.22,152.19,6.07518826]
[1762521259262,11.8282,152.3,152.2,9.26518826]
[1762521259452,5.9151,152.27,152.23,9.26518826]
[1762521259763,3.05,152.3,152.24,3.19]
[1762521259959,5.9155,152.26,152.23,6.11788253]
[1762521260259,0.04220314,152.27,152.25,6.07518826]
[1762521260653,5.95730314,152.27,152.25,6.07518826]
[1762521260859,0.04220314,152.27,152.25,6.07518826]
[1762521261248,0.04220314,152.27,152.26,5.23143193]
[1762521261460,0.04220314,152.27,152.26,8.42143193]
[1762521261760,0.04220314,152.27,152.26,14.49662019]
[1762521262152,3.05,152.34,152.26,11.26903137]
[1762521262354,3.05,152.34,152.23,5.18446302]
[1762521262355,3.05,152.34,152.27,5.23143193]
[1762521262555,3.05,152.34,152.28,3.193e-05]
[1762521262755,5.9153,152.26,152.25,6.03759944]
[1762521262961,5.9153,152.26,152.24,6.03759944]
[1762521263160,0.04531748,152.27,152.24,9.22759944]
[1762521263659,0.04531748,152.27,152.23,9.2697832]
[1762521263858,0.04531748,152.27,152.23,3.23218376]
[1762521264255,0.04531748,152.27,152.23,9.2697832]
[1762521264763,5.9155,152.26,152.23,9.2697832]
[1762521265063,0.04531748,152.27,152.23,9.2697832]
[1762521265260,0.04531748,152.27,152.24,3.19]
[1762521265956,0.04531748,152.27,152.23,9.2697832]
[1762521266153,0.04531748,152.27,152.23,3.23218376]
[1762521266355,0.04531748,152.27,152.23,9.2697832]
[1762521267653,0.04531748,152.27,152.24,3.19]
[1762521267862,0.04531748,152.27,152.25,9.22759944]
[1762521268052,3.09531748,152.27,152.24,6.03759944]
[1762521268359,5.9156,152.26,152.23,6.0797832]
[1762521268562,5.9156,152.26,152.24,6.03759944]
[1762521268866,5.9156,152.26,152.23,9.2697832]
[1762521269057,0.04531748,152.27,152.24,9.22759944]
[1762521269660,0.04531748,152.27,152.23,9.2697832]
[1762521269864,5.9155,152.26,152.24,3.19]
[1762521270165,0.04531748,152.27,152.24,9.22759944]
[1762521271263,5.9155,152.26,152.24,9.22759944]
[1762521271464,0.04531748,152.27,152.24,3.19]
[1762521271870,5.96041748,152.27,152.24,3.19]
[1762521272055,0.04531748,152.27,152.23,6.0797832]
[1762521272369,5.9159,152.25,152.23,0.04218376]
[1762521274563,5.9159,152.25,152.24,5.04360492]
[1762521274967,9.1959,152.25,152.24,4.92e-06]
[1762521275164,9.1959,152.25,152.19,68.1]
[1762521275165,3.28,152.23,152.19,68.1]
[1762521276067,3.28,152.28,152.2,2.99]
[1762521276268,3.28,152.25,152.22,0.04763236]
[1762521276572,3.32572135,152.25,152.22,0.04327618]
[1762521276869,3.32572135,152.25,152.22,16.15327618]
[1762521277265,9.1961,152.24,152.22,16.15327618]
[1762521278571,5.9161,152.24,152.22,16.15327618]
[1762521278771,5.9161,152.24,152.22,19.14327618]
[1762521279173,9.1961,152.24,152.22,16.15327618]
[1762521280465,3.09,152.23,152.22,6.09687618]
[1762521280772,3.09,152.23,152.22,7.618e-05]
[1762521281173,11.8346,152.21,152.11,8.35176875]
[1762521281478,3.09,152.2,152.11,8.35176875]
[1762521281777,3.09,152.17,152.14,0.04922615]
[1762521282472,0.049123,152.18,152.14,0.04922615]
[1762521282974,0.049123,152.18,152.14,3.25922615]
[1762521283369,5.9195,152.16,152.14,3.25922615]
[1762521284173,0.049123,152.18,152.14,9.7209949]
[1762521284376,0.049123,152.18,152.15,3.21]
[1762521285582,0.049123,152.18,152.17,3.21]
[1762521285876,5.9177,152.2,152.17,3.21]
[1762521286276,5.9177,152.2,152.18,3.21]
[1762521288978,5.9184,152.18,152.17,0.04537471]
[1762521289780,9.0084,152.18,152.17,0.04537471]
[1762521289982,5.9184,152.18,152.17,0.04537471]
[1762521290586,9.0084,152.18,152.17,0.04537471]
[1762521290778,9.0084,152.18,152.11,11.94397641]
[1762521290779,5.92,152.14,152.11,11.94397641]
[1762521290984,5.92,152.14,152.12,68.1]
[1762521292875,9.0108,152.12,152.11,0.04922296]
[1762521295088,10.3308,152.12,152.11,0.04922296]
[1762521295286,9.0116,152.1,152.09,0.6559]
[1762521295486,3.09,152.09,152.06,68.1]
[1762521295986,3.09,152.07,152.02,8.73397641]
[1762521296191,0.04997781,152.06,152.03,0.04885401]
[1762521296388,5.9237,152.05,152.03,0.04885401]
[1762521296890,0.04997781,152.06,152.03,0.04885401]
[1762521297291,0.04997781,152.06,152.03,3.25885401]
[1762521298690,0.04997781,152.06,152.03,9.29645345]
[1762521298891,0.04997781,152.06,152.04,3.21]
[1762521300594,5.9216,152.1,152.05,3.21]
[1762521300794,5.9216,152.1,152.07,3.21]
[1762521300994,3.09,152.16,152.07,9.24759944]
[1762521301198,3.09,152.22,152.11,3.21]
[1762521301389,3.09,152.22,152.13,3.21]
[1762521301691,0.04534496,152.18,152.13,3.21]
[1762521301891,3.09,152.27,152.17,3.21]
[1762521302097,3.09,152.27,152.18,68.1]
[1762521302601,5.9171,152.22,152.19,3.21]
[1762521302802,5.9171,152.22,152.19,3.25443971]
[1762521302803,0.04261172,152.22,152.19,3.25443971]
[1762521303302,3.09,152.31,152.21,3.21]
[1762521303502,3.09,152.31,152.2,8.73397641]
[1762521303804,3.09,152.23,152.14,6.03759944]
[1762521304206,5.9187,152.18,152.17,0.04277442]
[1762521304400,3.13400902,152.2,152.17,0.04277442]
[1762521304896,5.9182,152.19,152.17,0.04277442]
[1762521305198,0.04400902,152.2,152.17,3.31277442]
[1762521305398,0.04400902,152.2,152.17,0.04277442]
[1762521306206,5.9182,152.19,152.17,0.04277442]
[1762521306799,0.04400902,152.2,152.17,0.04277442]
[1762521306800,0.04400902,152.2,152.18,3.27]
[1762521307003,3.07,152.28,152.18,3.27]
[1762521307004,3.07,152.28,152.2,3.27]
[1762521307205,3.07,152.28,152.21,6.06820815]
[1762521307402,8.9847,152.28,152.21,9.33820815]
[1762521307606,3.07,152.28,152.22,68.1]
[1762521307807,3.07,152.28,152.21,9.33820815]
[1762521308004,0.04143616,152.26,152.23,0.04308939]
[1762521308200,0.04143616,152.26,152.23,3.31308939]
[1762521308405,0.04143616,152.26,152.23,9.38129754]
[1762521308702,0.04143616,152.26,152.25,3.27]
[1762521309312,0.04143616,152.26,152.23,0.04308939]
[1762521309502,0.04143616,152.26,152.23,3.31308939]
[1762521310513,0.04143616,152.26,152.24,68.08]
[1762521310806,5.95693616,152.26,152.24,68.08]
[1762521311112,9.02693616,152.26,152.24,68.08]
[1762521311606,9.02693616,152.26,152.23,0.04308939]
[1762521311607,3.07,152.25,152.19,71.35]
[1762521311909,3.07,152.25,152.15,8.0528385]
[1762521311910,3.07,152.25,152.15,68.06]
[1762521312098,5.9186,152.18,152.15,68.06]
[1762521312303,5.9186,152.18,152.15,71.33]
[1762521312504,5.96370409,152.18,152.15,71.3726033]
[1762521312704,0.04510409,152.18,152.15,71.3726033]
[1762521313005,0.04510409,152.18,152.15,68.1026033]
[1762521313006,3.11510409,152.18,152.15,68.1026033]
[1762521313312,5.9189,152.17,152.15,68.1026033]
[1762521313813,0.04510409,152.18,152.15,68.1026033]
[1762521314708,0.04510409,152.18,152.15,71.3726033]
[1762521315304,0.04510409,152.18,152.16,3.27]
[1762521316205,0.04510409,152.18,152.15,68.1026033]
[1762521316613,0.04510409,152.18,152.15,71.3726033]
[1762521316914,0.04510409,152.18,152.15,68.1026033]
[1762521318119,5.9189,152.17,152.15,68.1026033]
[1762521319314,5.9189,152.17,152.15,71.3726033]
[1762521320021,5.9189,152.17,152.15,68.1026033]
[1762521320817,8.9889,152.17,152.15,0.0426033]
[1762521321018,3.07,152.16,152.15,0.0426033]
[1762521321620,5.9189,152.17,152.15,0.0426033]
[1762521322009,0.04510409,152.18,152.15,3.3126033]
[1762521322208,3.07,152.24,152.15,9.38081145]
[1762521322520,3.07,152.24,152.16,9.33820815]
[1762521323411,0.04625864,152.22,152.18,3.31653978]
[1762521323814,5.9177,152.2,152.18,0.04653978]
[1762521324216,9.03335864,152.22,152.18,0.04653978]
[1762521324421,0.04625864,152.22,152.18,3.31653978]
[1762521324923,0.04625864,152.22,152.2,3.27]
[1762521325616,0.04625864,152.22,152.18,3.31653978]
[1762521325822,3.11625864,152.22,152.18,0.04653978]
[1762521326013,5.9177,152.2,152.18,0.04653978]
[1762521326915,3.07,152.19,152.18,0.04653978]
[1762521327418,4.39,152.19,152.18,0.04653978]
[1762521327619,4.39,152.19,152.15,68.06]
[1762521327620,3.07,152.18,152.15,68.06]
[1762521328325,5.9199,152.15,152.12,9.36119802]
[1762521328521,0.04270973,152.15,152.12,9.40553532]
[1762521329030,0.04270973,152.15,152.12,0.0443373]
[1762521330118,0.04270973,152.15,152.12,3.3143373]
[1762521331123,0.04270973,152.15,152.13,3.27]
[1762521332324,3.07,152.26,152.15,3.27]
[1762521332522,3.07,152.26,152.17,3.27]
[1762521333327,0.04727668,152.23,152.2,0.0505905]
[1762521333527,5.96397668,152.23,152.2,71.3805905]
[1762521333724,0.04727668,152.23,152.21,3.27]
[1762521334825,0.04727668,152.23,152.2,68.1105905]
[1762521335031,3.09727668,152.23,152.2,68.1105905]
[1762521335526,0.04727668,152.23,152.2,68.1105905]
[1762521335929,5.917,152.22,152.2,68.1105905]
[1762521340228,0.04727668,152.23,152.21,3.26]
[1762521341231,0.04727668,152.23,152.21,9.34403767]
[1762521341534,0.04727668,152.23,152.22,9.34403767]
[1762521341734,5.9152,152.27,152.22,6.08403767]
[1762521342035,2.99,152.33,152.25,3.26]
[1762521342227,2.99,152.28,152.22,74.10403767]
[1762521342427,2.99,152.28,152.22,77.36403767]
[1762521342829,2.99,152.28,152.23,3.30745869]
[1762521342830,0.04715442,152.27,152.23,3.30745869]
[1762521343139,0.04715442,152.27,152.26,3.26]
[1762521343434,0.04715442,152.27,152.26,71.28]
[1762521344530,0.04715442,152.27,152.26,68.02]
[1762521344932,0.04715442,152.27,152.26,71.28]
[1762521345737,3.03715442,152.27,152.23,0.04745869]
[1762521346637,5.9159,152.25,152.23,0.04745869]
[1762521346832,5.9159,152.25,152.23,3.30745869]
[1762521347033,8.9059,152.25,152.23,0.04745869]
[1762521347435,5.9159,152.25,152.23,0.04745869]
[1762521348237,0.04715442,152.27,152.23,3.30745869]
[1762521348435,3.03715442,152.27,152.23,0.04745869]
[1762521348933,5.9159,152.25,152.23,0.04745869]
[1762521349140,0.04715442,152.27,152.23,3.30745869]
[1762521349437,5.96225442,152.27,152.24,3.26]
[1762521350642,3.03715442,152.27,152.23,5.17440208]
[1762521351045,3.03715442,152.27,152.23,73.17440208]
[1762521351444,5.9159,152.25,152.23,73.17440208]
[1762521352247,5.9159,152.25,152.23,68.04745869]
[1762521352540,5.9183,152.19,152.15,5.12694339]
[1762521352740,5.9183,152.19,152.16,3.26]
[1762521353539,5.96339287,152.19,152.16,3.30605953]
[1762521353732,5.96339287,152.19,152.16,0.04605953]
[1762521353933,8.9087,152.18,152.16,0.04605953]
[1762521354242,0.04509287,152.19,152.16,71.30605953]
[1762521354443,0.04509287,152.19,152.18,8.38694339]
[1762521355549,5.9171,152.22,152.19,3.26]
[1762521356047,68.0,152.3,152.16,68.04605953]
[1762521356048,2.99,152.21,152.16,68.04605953]
[1762521356248,2.99,152.21,152.16,68.0]
[1762521356449,0.0497747,152.2,152.17,0.0433372]
[1762521356746,5.9675747,152.2,152.17,0.0433372]
[1762521356936,3.0397747,152.2,152.17,0.0433372]
[1762521357545,0.0497747,152.2,152.17,3.3033372]
[1762521358250,5.9676747,152.2,152.17,0.0433372]
[1762521358440,0.0497747,152.2,152.17,0.0433372]
[1762521358847,5.9182,152.19,152.17,0.0433372]
[1762521359540,0.0497747,152.2,152.18,8.38694339]
[1762521360337,0.0497747,152.2,152.17,0.0433372]
[1762521360545,3.0397747,152.2,152.17,0.0433372]
[1762521361048,0.0497747,152.2,152.17,0.0433372]
[1762521361652,5.9183,152.19,152.17,0.0433372]
[1762521362050,2.99,152.18,152.17,0.0433372]
[1762521363040,5.9183,152.19,152.17,0.0433372]
[1762521364250,0.0497747,152.2,152.17,3.3033372]
[1762521364448,0.0497747,152.2,152.18,3.26]
[1762521365455,0.0497747,152.2,152.17,5.17028059]
[1762521365647,3.2297747,152.2,152.17,0.0433372]
[1762521365953,5.9182,152.19,152.17,0.0433372]
[1762521366652,9.0982,152.19,152.17,0.0433372]
[1762521367152,5.9182,152.19,152.17,0.0433372]
[1762521367351,0.0497747,152.2,152.17,3.0933372]
[1762521367557,0.0497747,152.2,152.18,3.05]
[1762521368263,3.18,152.33,152.23,8.17694339]
[1762521368457,3.18,152.3,152.2,5.12694339]
[1762521369045,3.22163424,152.27,152.23,0.04780712]
[1762521369244,3.22163424,152.27,152.23,0.04389698]
[1762521369656,5.916,152.25,152.23,0.04389698]
[1762521369847,3.18,152.24,152.23,0.04389698]
[1762521370659,3.18,152.24,152.17,5.12694339]
[1762521370660,3.18,152.22,152.17,5.12694339]
[1762521371051,3.18,152.22,152.17,8.17694339]
[1762521371355,3.18,152.26,152.18,3.05]
[1762521371550,3.22333094,152.24,152.2,0.05045252]
[1762521372144,0.04333094,152.24,152.2,0.05045252]
[1762521372651,5.9172,152.22,152.2,0.05045252]
[1762521372846,9.0972,152.22,152.2,0.05045252]
[1762521373553,3.18,152.21,152.2,0.05045252]
[1762521374159,5.9172,152.22,152.2,0.05045252]
[1762521374358,9.0972,152.22,152.2,0.05045252]
[1762521374559,3.18,152.21,152.2,0.05045252]
[1762521374762,3.18,152.21,152.11,8.0528385]
[1762521374763,3.18,152.21,152.12,6.07022276]
[1762521375050,3.18,152.19,152.11,9.12022276]
[1762521375250,3.18,152.19,152.1,11.39716615]
[1762521375456,5.9205,152.13,152.1,14.44716615]
[1762521375955,0.04442293,152.13,152.1,14.49001464]
[1762521376453,5.9209,152.12,152.1,0.24284849]
[1762521376648,5.9209,152.12,152.1,3.29284849]
[1762521376844,0.04442293,152.13,152.1,3.29284849]
[1762521377048,5.96492293,152.13,152.1,3.29284849]
[1762521378159,0.04442293,152.13,152.1,3.29284849]
[1762521378557,5.921,152.12,152.1,0.24284849]
[1762521378952,3.18,152.11,152.1,4.849e-05]
[1762521379757,4.5,152.11,152.1,4.849e-05]
[1762521380958,3.18,152.11,152.1,4.849e-05]
[1762521382248,4.5,152.11,152.1,4.849e-05]
[1762521382646,3.18,152.1,152.01,6.07022276]
[1762521382850,3.18,152.1,152.0,6.07022276]
[1762521383360,3.18,152.1,152.01,3.05]
[1762521383757,3.22838797,152.07,152.04,0.04258452]
[1762521383951,9.1031,152.06,152.04,0.04258452]
[1762521384355,3.18,152.05,151.97,6.07022276]
[1762521384557,3.18,152.05,151.98,3.05]
[1762521385356,0.04891098,152.03,152.01,3.05]
[1762521385555,0.04435371,152.04,152.01,3.05]
[1762521385762,5.96835371,152.04,152.01,3.10002588]
[1762521386367,0.04435371,152.04,152.01,3.10002588]
[1762521386663,0.04435371,152.04,152.02,3.05]
[1762521388660,5.9244,152.03,152.01,0.05002588]
[1762521388865,5.9244,152.03,152.01,3.10002588]
[1762521390361,3.18,152.13,152.01,3.10002588]
[1762521390663,3.18,152.13,152.06,3.05]
[1762521391165,3.18,152.13,152.02,8.17694339]
[1762521391359,0.04449225,152.09,152.06,0.04430883]
[1762521392058,3.22449225,152.09,152.06,0.04430883]
[1762521392359,3.22449225,152.09,152.06,3.09430883]
[1762521392360,0.04449225,152.09,152.06,3.09430883]
[1762521392563,3.18,152.17,152.09,3.05]
[1762521393259,3.18,152.17,152.06,8.17694339]
[1762521393458,0.04496428,152.13,152.1,0.04425437]
[1762521393664,3.22496428,152.13,152.1,0.04425437]
[1762521394158,9.1008,152.12,152.1,0.04425437]
[1762521394461,3.18,152.11,152.1,0.04425437]
[1762521394965,5.9208,152.12,152.1,0.04425437]
[1762521395966,0.04496428,152.13,152.1,3.22425437]
[1762521396356,0.04496428,152.13,152.1,8.35119776]
[1762521396566,0.04496428,152.13,152.11,3.18]
[1762521397262,0.04496428,152.13,152.11,4.5]
[1762521397461,3.18,152.19,152.12,4.5]
[1762521397661,3.18,152.26,152.13,8.30694339]
[1762521397963,3.18,152.23,152.14,3.18]
[1762521398465,0.04312866,152.2,152.17,3.22270118]
[1762521399561,0.04312866,152.2,152.17,0.04270118]
[1762521400264,3.32312866,152.2,152.17,0.04270118]
[1762521400461,5.9203,152.14,152.1,3.17]
[1762521400963,3.28,152.19,152.07,5.12694339]
[1762521401167,3.28,152.14,152.06,3.17]
[1762521401461,3.28,152.11,152.08,0.04900353]
[1762521401767,3.28,152.11,152.08,0.04470782]
[1762521402466,9.2018,152.1,152.08,0.04470782]
[1762521402767,5.9218,152.1,152.08,0.04470782]
[1762521403463,3.28,152.09,152.08,0.04470782]
[1762521405864,5.9218,152.1,152.08,0.04470782]
[1762521406469,3.28,152.09,152.08,0.04470782]
[1762521407668,9.2018,152.1,152.08,0.04470782]
[1762521407970,3.28,152.09,152.08,0.04470782]
[1762521408458,5.9227,152.07,151.99,3.17]
[1762521408654,3.28,152.1,152.0,3.17]
[1762521408856,5.922,152.09,152.0,3.17]
[1762521409060,5.922,152.09,152.0,9.24022276]
[1762521409263,5.922,152.09,152.01,3.17]
[1762521409562,0.04446618,152.06,152.04,3.17]
[1762521409758,0.04949762,152.07,152.04,3.17]
[1762521410867,9.2004,152.13,152.05,3.17]
[1762521411067,3.28,152.17,152.05,3.17]
[1762521411263,5.9202,152.14,152.05,3.17]
[1762521411566,3.28,152.17,152.08,3.17]
[1762521411971,0.04910922,152.14,152.12,3.17]
[1762521412357,0.04910922,152.14,152.11,0.0440471]
[1762521413266,0.04910922,152.14,152.11,3.2140471]
[1762521414573,3.28,152.22,152.12,3.17]
[1762521414769,3.28,152.22,152.12,9.24022276]
[1762521414965,3.28,152.22,152.13,3.17]
[1762521415165,9.1973,152.21,152.13,3.17]
[1762521415673,5.3579,152.28,152.15,0.04673492]
[1762521415674,3.32341339,152.19,152.15,0.04673492]
[1762521415870,3.32155026,152.19,152.15,0.04669821]
[1762521416370,0.04155026,152.19,152.15,3.21669821]
[1762521417565,3.32155026,152.19,152.15,0.04669821]
[1762521418171,3.28,152.16,152.15,0.04669821]
[1762521418369,3.28,152.16,152.07,3.17]
[1762521418569,3.28,152.16,152.06,8.75120831]
[1762521418775,3.28,152.16,152.04,9.24022276]
[1762521418976,3.28,152.13,152.04,9.24022276]
[1762521419175,3.28,152.13,152.04,3.17]
[1762521419370,0.04963126,152.1,152.07,3.21979545]
[1762521419677,0.04844042,152.1,152.07,3.21163158]
[1762521420377,5.9194,152.16,152.08,4.49]
[1762521420676,5.9194,152.16,152.09,3.17]
[1762521420979,5.9194,152.16,152.09,9.24022276]
[1762521421482,0.04794487,152.14,152.11,0.04318703]
[1762521421674,3.28,152.13,152.11,0.04318703]
[1762521421875,9.201,152.12,152.11,0.04318703]
[1762521422680,0.04794487,152.14,152.11,3.21318703]
[1762521423778,0.04794487,152.14,152.11,0.04318703]
[1762521424678,5.9205,152.13,152.11,0.04318703]
[1762521425082,3.1,152.12,152.11,0.04318703]
[1762521426890,3.1,152.09,152.02,6.07022276]
[1762521427083,3.1,152.09,152.0,6.07022276]
[1762521427487,5.9228,152.07,152.0,9.11022276]
[1762521427890,0.04166132,152.05,152.02,0.04398543]
[1762521428690,0.04166132,152.05,152.02,3.08398543]
[1762521428996,3.1,152.13,152.03,3.04]
[1762521429490,5.9217,152.1,152.03,3.04]
[1762521429987,0.04496113,152.08,152.05,0.04746091]
[1762521430192,0.04496113,152.08,152.05,3.08746091]
[1762521431790,8.75120831,152.18,152.05,3.08746091]
[1762521431791,3.1,152.18,152.06,1.32]
[1762521431990,3.1,152.18,152.08,3.04]
[1762521432198,5.9197,152.15,152.08,3.04]
[1762521432496,3.1,152.18,152.04,3.04]
[1762521432687,5.9214,152.11,152.04,3.04]
[1762521433092,0.04478388,152.09,152.06,0.04642629]
[1762521433297,9.06688388,152.09,152.06,0.04642629]
[1762521433494,3.1,152.08,152.06,0.04642629]
[1762521433800,9.0225,152.08,152.06,0.04642629]
[1762521434000,3.1,152.07,152.06,0.04642629]
[1762521435287,3.1,152.07,152.02,67.9]
[1762521435496,3.1,152.06,151.98,283.35553996]
[1762521435997,3.1,152.12,151.99,3.04]
[1762521436394,17.96288254,152.16,152.04,0.04987658]
[1762521436395,3.1,152.05,152.04,0.04987658]
[1762521436692,3.1,152.05,151.99,8.9656]
[1762521436693,3.1,152.05,152.03,0.04437582]
[1762521436895,0.04636849,152.06,152.03,0.04437582]
[1762521437093,3.14636849,152.06,152.03,0.04437582]
[1762521437291,0.04636849,152.06,152.03,0.04437582]
[1762521437492,3.14636849,152.06,152.03,0.04437582]
[1762521437696,9.0236,152.05,152.03,0.04437582]
[1762521438297,3.1,152.04,152.03,0.04437582]
[1762521439701,5.9268,151.97,151.94,8.0528385]
[1762521440002,3.1,152.03,151.94,3.04]
[1762521440602,3.1,152.03,151.91,67.9]
[1762521440796,0.04860388,151.99,151.95,0.04975621]
[1762521440994,3.1,151.98,151.95,0.04751355]
[1762521441192,0.04175394,151.99,151.95,0.04751355]
[1762521441399,0.04175394,151.99,151.95,3.08751355]
[1762521442498,3.1,152.06,151.97,3.04]
[1762521442703,9.0233,152.06,151.98,3.04]
[1762521443204,5.9236,152.05,151.98,3.04]
[1762521443598,8.75120831,152.13,152.0,0.04390194]
[1762521443599,3.14608614,152.03,152.0,0.04390194]
[1762521443799,9.0248,152.02,152.0,0.04682757]
[1762521444001,0.04219216,152.03,152.0,0.04682757]
[1762521445103,9.06669216,152.03,152.0,0.04682757]
[1762521445694,3.1,152.02,152.0,0.04682757]
[1762521446409,3.1,151.98,151.88,3.04]
[1762521446911,3.1,151.92,151.83,3.04]
[1762521447205,8.75120831,152.01,151.84,3.04]
[1762521447206,3.1,152.0,151.84,3.04]
[1762521447507,3.1,151.92,151.9,0.04256939]
[1762521447698,3.1,151.92,151.89,0.04476941]
[1762521447900,3.15020194,151.92,151.89,0.04823961]
[1762521448100,9.0295,151.9,151.89,0.04823961]
[1762521448303,0.05020194,151.92,151.89,0.04823961]
[1762521448504,0.05020194,151.92,151.89,3.08823961]
[1762521452406,0.05020194,151.92,151.89,71.02823961]
[1762521452809,0.05020194,151.92,151.9,3.04]
[1762521453015,3.1,152.0,151.9,3.04]
[1762521454114,0.04834712,151.97,151.93,0.04663043]
[1762521454413,3.14834712,151.97,151.93,0.04663043]
[1762521454605,3.14834712,151.97,151.93,67.98663043]
[1762521455307,3.14834712,151.97,151.93,0.04663043]
[1762521455512,3.14834712,151.97,151.93,67.98663043]
[1762521456611,0.04834712,151.97,151.94,3.25]
[1762521457411,0.04834712,151.97,151.96,3.25]
[1762521457915,0.04834712,151.97,151.96,71.19]
[1762521458611,0.04834712,151.97,151.96,67.92]
[1762521459318,0.04834712,151.97,151.94,71.17]
[1762521460018,3.10834712,151.97,151.93,0.04663043]
[1762521460213,3.10834712,151.97,151.94,67.92]
[1762521460918,3.10834712,151.97,151.95,3.01]
[1762521460919,0.04834712,151.97,151.95,3.01]
[1762521461112,0.04834712,151.97,151.95,70.93]
[1762521462315,0.04834712,151.97,151.96,3.01]
[1762521462715,0.04834712,151.97,151.93,3.05663043]
[1762521462917,0.04834712,151.97,151.94,67.92]
[1762521463114,0.04834712,151.97,151.94,70.93]
[1762521466619,0.04834712,151.97,151.95,3.01]
[1762521468122,0.04834712,151.97,151.93,0.04663043]
[1762521468323,0.04834712,151.97,151.94,70.93]
[1762521469031,0.04834712,151.97,151.95,67.92]
[1762521469032,3.10834712,151.97,151.95,67.92]
[1762521469724,0.04834712,151.97,151.95,67.92]
[1762521469923,5.97504712,151.97,151.95,67.92]
[1762521470124,0.04834712,151.97,151.96,3.01]
[1762521470328,0.04834712,151.97,151.96,8.15466351]
[1762521470827,3.06,152.09,151.97,3.01]
[1762521471027,3.06,152.09,152.0,5.14466351]
[1762521471227,3.06,152.09,152.01,67.9]
[1762521471724,3.06,152.09,152.01,70.91]
[1762521472030,5.9232,152.06,152.03,0.0471678]
[1762521472230,0.04391356,152.07,152.03,0.0471678]
[1762521472425,0.04391356,152.07,152.03,8.20183131]